fUSD/lending_fUSD_20241123
["ID","MTS","AMOUNT","RATE_DAILY","PERIOD"]
[343090996,1732345838660,-228.9338828,0.00052602,120]
[343090997,1732345838670,-500.0,0.00052602,120]
[343090998,1732345838678,-500.0,0.00052602,120]
[343090999,1732345838689,-500.0,0.00052602,120]
[343091000,1732345838700,-500.0,0.00052602,120]
[343091001,1732345838710,-500.0,0.00052602,120]
[343091002,1732345838719,-500.0,0.00052602,120]
[343091003,1732345838728,-500.0,0.00052602,120]
[343091004,1732345838737,-500.0,0.00052602,120]
[343091005,1732345838747,-500.0,0.00052602,120]
[343091006,1732345838756,-500.0,0.00052602,120]
[343091007,1732345838765,-500.0,0.00052602,120]
[343091008,1732345838774,-500.0,0.00052602,120]
[343091009,1732345838783,-500.0,0.00052602,120]
[343091010,1732345838792,-500.0,0.00052602,120]
[343091011,1732345838802,-500.0,0.00052602,120]
[343091012,1732345838815,-500.0,0.00052602,120]
[343091013,1732345838824,-500.0,0.00052602,120]
[343091014,1732345838834,-500.0,0.00052602,120]
[343091015,1732345838844,-500.0,0.00052602,120]
[343091016,1732345838854,-500.0,0.00052602,120]
[343091017,1732345838863,-500.0,0.00052602,120]
[343091019,1732345838872,-500.0,0.00052602,120]
[343091021,1732345838886,-500.0,0.00052602,120]
[343091022,1732345838898,-500.0,0.00052602,120]
[343091023,1732345838908,-500.0,0.00052602,120]
[343091024,1732345838917,-538.19,0.00052602,120]
[343091025,1732345838927,-500.0,0.00052602,120]
[343091026,1732345838937,-500.0,0.00052602,120]
[343091027,1732345838947,-500.0,0.00052602,120]
[343091028,1732345838956,-500.0,0.00052602,120]
[343091029,1732345838966,-500.0,0.00052602,120]
[343091030,1732345838975,-500.0,0.00052602,120]
[343091031,1732345838985,-500.0,0.00052602,120]
[343091032,1732345838995,-500.0,0.00052602,120]
[343091033,1732345839004,-500.0,0.00052602,120]
[343091034,1732345839014,-500.0,0.00052602,120]
[343091035,1732345839024,-500.0,0.00052602,120]
[343091036,1732345839034,-500.0,0.00052602,120]
[343091037,1732345839043,-500.0,0.00052602,120]
[343091038,1732345839053,-500.0,0.00052602,120]
[343091039,1732345839062,-399.71,0.00052602,120]
[343091040,1732345839072,-500.0,0.00052602,120]
[343091041,1732345839082,-500.0,0.00052602,120]
[343091042,1732345839091,-500.0,0.00052602,120]
[343091043,1732345839101,-500.0,0.00052602,120]
[343091044,1732345839110,-500.0,0.00052602,120]
[343091045,1732345839120,-500.0,0.00052602,120]
[343091046,1732345839130,-500.0,0.00052602,120]
[343091047,1732345839140,-500.0,0.00052602,120]
[343091048,1732345839149,-500.0,0.00052602,120]
[343091049,1732345839159,-572.74654179,0.00052602,120]
[343091050,1732345839168,-165.96,0.00052602,120]
[343091051,1732345839178,-588.42,0.00052602,120]
[343091052,1732345839189,-588.42,0.00052602,120]
[343091053,1732345839198,-588.42,0.00052602,120]
[343091054,1732345839208,-588.42,0.00052602,120]
[343091055,1732345839218,-588.42,0.00052602,120]
[343091056,1732345839227,-500.0,0.00052602,120]
[343091057,1732345839237,-511.19308345,0.00052602,120]
[343091058,1732345839247,-500.0,0.00052602,120]
[343091059,1732345839257,-504.67968201,0.00052602,120]
[343091060,1732345839266,-500.0,0.00052602,120]
[343091061,1732345839275,-612.2439996,0.00052602,120]
[343091062,1732345839285,-500.0,0.00052602,120]
[343091063,1732345839295,-500.0,0.00052602,120]
[343091064,1732345839304,-500.0,0.00052602,120]
[343091065,1732345839314,-500.0,0.00052602,120]
[343091066,1732345839323,-500.0,0.00052602,120]
[343091067,1732345839333,-500.0,0.00052602,120]
[343091068,1732345839342,-500.0,0.00052602,120]
[343091069,1732345839352,-500.0,0.00052602,120]
[343091070,1732345839361,-500.0,0.00052602,120]
[343091071,1732345839371,-700.0,0.00052602,120]
[343091072,1732345839382,-500.0,0.00052602,120]
[343091073,1732345839392,-500.0,0.00052602,120]
[343091074,1732345839401,-500.0,0.00052602,120]
[343091075,1732345839411,-500.0,0.00052602,120]
[343091076,1732345839421,-500.0,0.00052602,120]
[343091077,1732345839430,-500.0,0.00052602,120]
[343091078,1732345839439,-546.92,0.00052602,120]
[343091079,1732345839449,-500.0,0.00052602,120]
[343091080,1732345839458,-500.0,0.00052602,120]
[343091081,1732345839467,-500.0,0.00052602,120]
[343091082,1732345839481,-500.0,0.00052602,120]
[343091083,1732345839490,-500.0,0.00052602,120]
[343091084,1732345839500,-500.0,0.00052602,120]
[343091085,1732345839509,-500.0,0.00052602,120]
[343091086,1732345839520,-500.0,0.00052602,120]
[343091087,1732345839530,-500.0,0.00052602,120]
[343091088,1732345839540,-500.0,0.00052602,120]
[343091089,1732345839549,-500.0,0.00052602,120]
[343091090,1732345839559,-500.0,0.00052602,120]
[343091091,1732345839570,-500.0,0.00052602,120]
[343091092,1732345839580,-500.0,0.00052602,120]
[343091093,1732345839589,-500.0,0.00052602,120]
[343091094,1732345839600,-504.28844644,0.00052602,120]
[343091095,1732345839611,-500.0,0.00052602,120]
[343091096,1732345839620,-500.0,0.00052602,120]
[343091097,1732345839630,-500.0,0.00052602,120]
[343091098,1732345839639,-500.0,0.00052602,120]
[343091099,1732345839649,-500.0,0.00052602,120]
[343091100,1732345839659,-500.0,0.00052602,120]
[343091101,1732345839668,-632.68,0.00052602,120]
[343091102,1732345839678,-500.0,0.00052602,120]
[343091103,1732345839688,-500.0,0.00052602,120]
[343091104,1732345839697,-500.0,0.00052602,120]
[343091105,1732345839712,-500.0,0.00052602,120]
[343091106,1732345839721,-500.0,0.00052602,120]
[343091107,1732345839731,-500.0,0.00052602,120]
[343091108,1732345839739,-500.0,0.00052602,120]
[343091109,1732345839748,-500.0,0.00052602,120]
[343091110,1732345839758,-500.0,0.00052602,120]
[343091111,1732345839769,-500.0,0.00052602,120]
[343091112,1732345839778,-500.0,0.00052602,120]
[343091113,1732345839788,-500.0,0.00052602,120]
[343091114,1732345839798,-500.0,0.00052602,120]
[343091115,1732345839808,-500.0,0.00052602,120]
[343091116,1732345839818,-500.0,0.00052602,120]
[343091117,1732345839830,-544.13549751,0.00052602,120]
[343091118,1732345839840,-500.0,0.00052602,120]
[343091119,1732345839849,-500.0,0.00052602,120]
[343091120,1732345839861,-500.0,0.00052602,120]
[343091121,1732345839871,-500.0,0.00052602,120]
[343091122,1732345839881,-500.0,0.00052602,120]
[343091123,1732345839891,-500.0,0.00052602,120]
[343091124,1732345839901,-500.0,0.00052602,120]
[343091125,1732345839911,-500.0,0.00052602,120]
[343091126,1732345839921,-500.0,0.00052602,120]
[343091127,1732345839930,-1772.96,0.00052602,120]
[343091128,1732345839939,-1772.96,0.00052602,120]
[343091129,1732345839949,-5000.0,0.00052602,120]
[343091130,1732345839959,-3350.237134,0.00052602,120]
[343091131,1732345839968,-500.0,0.00052602,120]
[343091132,1732345839978,-500.0,0.00052602,120]
[343091133,1732345839988,-500.0,0.00052602,120]
[343091134,1732345839999,-500.0,0.00052602,120]
[343091135,1732345840008,-500.0,0.00052602,120]
[343091136,1732345840018,-500.0,0.00052602,120]
[343091137,1732345840028,-500.0,0.00052602,120]
[343091138,1732345840037,-500.0,0.00052602,120]
[343091139,1732345840048,-500.0,0.00052602,120]
[343091140,1732345840058,-500.0,0.00052602,120]
[343091141,1732345840068,-500.0,0.00052602,120]
[343091142,1732345840078,-500.0,0.00052602,120]
[343091143,1732345840088,-500.0,0.00052602,120]
[343091144,1732345840099,-538.54,0.00052602,120]
[343091145,1732345840108,-500.0,0.00052602,120]
[343091146,1732345840118,-500.0,0.00052602,120]
[343091147,1732345840128,-500.0,0.00052602,120]
[343091148,1732345840140,-500.0,0.00052602,120]
[343091149,1732345840150,-336.13324528,0.00052602,120]
[343091151,1732345840160,-500.0,0.00052602,120]
[343091152,1732345840262,-500.0,0.00052602,120]
[343091153,1732345840273,-500.0,0.00052602,120]
[343091154,1732345840283,-4267.37,0.00052602,120]
[343091155,1732345840293,-4267.37,0.00052602,120]
[343091156,1732345840303,-500.0,0.00052602,120]
[343091157,1732345840313,-500.0,0.00052602,120]
[343091158,1732345840322,-600.30951026,0.00052602,120]
[343091159,1732345840332,-569.73218199,0.00052602,120]
[343091160,1732345840342,-500.0,0.00052602,120]
[343091161,1732345840351,-500.0,0.00052602,120]
[343091162,1732345840361,-462.75,0.00052602,120]
[343091163,1732345840371,-500.0,0.00052602,120]
[343091164,1732345840382,-500.0,0.00052602,120]
[343091165,1732345840391,-500.0,0.00052602,120]
[343091166,1732345840401,-533.00514292,0.00052602,120]
[343091167,1732345840410,-500.0,0.00052602,120]
[343091168,1732345840420,-500.0,0.00052602,120]
[343091169,1732345840430,-500.0,0.00052602,120]
[343091170,1732345840439,-500.0,0.00052602,120]
[343091171,1732345840449,-500.0,0.00052602,120]
[343091172,1732345840459,-500.0,0.00052602,120]
[343091173,1732345840469,-500.0,0.00052602,120]
[343091174,1732345840478,-500.0,0.00052602,120]
[343091175,1732345840492,-166.21,0.00052602,120]
[343091176,1732345840501,-500.0,0.00052602,120]
[343091177,1732345840511,-727.7,0.00052602,120]
[343091178,1732345840520,-727.7,0.00052602,120]
[343091179,1732345840531,-500.0,0.00052602,120]
[343091180,1732345840541,-500.0,0.00052602,120]
[343091181,1732345840550,-500.0,0.00052602,120]
[343091182,1732345840560,-500.0,0.00052602,120]
[343091183,1732345840570,-584.16512617,0.00052602,120]
[343091184,1732345840579,-754.97,0.00052602,120]
[343091185,1732345840589,-500.0,0.00052602,120]
[343091186,1732345840599,-500.0,0.00052602,120]
[343091187,1732345840608,-500.0,0.00052602,120]
[343091188,1732345840618,-500.0,0.00052602,120]
[343091189,1732345840627,-168.34,0.00052602,120]
[343091190,1732345840640,-500.0,0.00052602,120]
[343091191,1732345840651,-500.0,0.00052602,120]
[343091192,1732345840660,-500.0,0.00052602,120]
[343091193,1732345840670,-500.0,0.00052602,120]
[343091194,1732345840680,-500.0,0.00052602,120]
[343091195,1732345840689,-533.98,0.00052602,120]
[343091196,1732345840699,-533.98,0.00052602,120]
[343091197,1732345840708,-500.0,0.00052602,120]
[343091198,1732345840718,-500.0,0.00052602,120]
[343091199,1732345840727,-500.0,0.00052602,120]
[343091200,1732345840737,-500.0,0.00052602,120]
[343091201,1732345840747,-500.0,0.00052602,120]
[343091202,1732345840756,-500.0,0.00052602,120]
[343091203,1732345840765,-500.0,0.00052602,120]
[343091204,1732345840775,-500.0,0.00052602,120]
[343091205,1732345840784,-500.0,0.00052602,120]
[343091206,1732345840794,-500.0,0.00052602,120]
[343091207,1732345840804,-500.0,0.00052602,120]
[343091208,1732345840813,-500.0,0.00052602,120]
[343091209,1732345840823,-500.0,0.00052602,120]
[343091210,1732345840832,-500.0,0.00052602,120]
[343091211,1732345840842,-500.0,0.00052602,120]
[343091212,1732345840852,-500.0,0.00052602,120]
[343091213,1732345840861,-500.0,0.00052602,120]
[343091214,1732345840871,-500.0,0.00052602,120]
[343091215,1732345840883,-500.0,0.00052602,120]
[343091216,1732345840893,-500.0,0.00052602,120]
[343091217,1732345840903,-500.0,0.00052602,120]
[343091218,1732345840913,-500.0,0.00052602,120]
[343091219,1732345840923,-500.0,0.00052602,120]
[343091220,1732345840932,-500.0,0.00052602,120]
[343091221,1732345840942,-500.0,0.00052602,120]
[343091222,1732345840952,-500.0,0.00052602,120]
[343091223,1732345840962,-500.0,0.00052602,120]
[343091224,1732345840971,-500.0,0.00052602,120]
[343091225,1732345840980,-928.39,0.00052602,120]
[343091226,1732345840990,-928.39,0.00052602,120]
[343091227,1732345840999,-500.0,0.00052602,120]
[343091228,1732345841009,-520.23104205,0.00052602,120]
[343091229,1732345841018,-500.0,0.00052602,120]
[343091230,1732345841028,-500.0,0.00052602,120]
[343091231,1732345841037,-327.35,0.00052602,120]
[343091232,1732345841047,-500.0,0.00052602,120]
[343091233,1732345841056,-500.0,0.00052602,120]
[343091234,1732345841065,-500.0,0.00052602,120]
[343091235,1732345841075,-500.0,0.00052602,120]
[343091236,1732345841085,-500.0,0.00052602,120]
[343091237,1732345841095,-500.0,0.00052602,120]
[343091238,1732345841104,-500.0,0.00052602,120]
[343091239,1732345841114,-500.0,0.00052602,120]
[343091240,1732345841124,-500.0,0.00052602,120]
[343091241,1732345841135,-500.0,0.00052602,120]
[343091242,1732345841145,-500.0,0.00052602,120]
[343091243,1732345841154,-500.0,0.00052602,120]
[343091244,1732345841163,-508.72,0.00052602,120]
[343091245,1732345841173,-500.0,0.00052602,120]
[343091246,1732345841182,-500.0,0.00052602,120]
[343091247,1732345841192,-500.0,0.00052602,120]
[343091248,1732345841201,-500.0,0.00052602,120]
[343091249,1732345841210,-500.0,0.00052602,120]
[343091250,1732345841219,-500.0,0.00052602,120]
[343091251,1732345841229,-500.0,0.00052602,120]
[343091252,1732345841238,-500.0,0.00052602,120]
[343091253,1732345841247,-528.76769083,0.00052602,120]
[343091254,1732345841257,-500.0,0.00052602,120]
[343091255,1732345841266,-508.97666454,0.00052602,120]
[343091256,1732345841276,-500.0,0.00052602,120]
[343091257,1732345841285,-500.0,0.00052602,120]
[343091258,1732345841295,-500.0,0.00052602,120]
[343091259,1732345841304,-500.0,0.00052602,120]
[343091260,1732345841314,-500.0,0.00052602,120]
[343091261,1732345841323,-500.0,0.00052602,120]
[343091262,1732345841333,-500.0,0.00052602,120]
[343091263,1732345841343,-500.0,0.00052602,120]
[343091264,1732345841352,-221.46973416,0.00052602,120]
[343091265,1732345841362,-500.0,0.00052602,7]
[343091266,1732345841371,-515.12679304,0.00052602,120]
[343091267,1732345841380,-500.0,0.00052602,7]
[343091268,1732345841390,-500.0,0.00052602,120]
[343091269,1732345841399,-553.49222693,0.00052602,120]
[343091270,1732345841408,-500.0,0.00052602,120]
[343091271,1732345841417,-500.0,0.00052602,120]
[343091272,1732345841426,-595.79,0.00052602,120]
[343091273,1732345841435,-601.65,0.00052602,120]
[343091274,1732345841444,-500.0,0.00052602,120]
[343091275,1732345841454,-500.0,0.00052602,120]
[343091276,1732345841463,-500.0,0.00052602,120]
[343091277,1732345841473,-500.0,0.00052602,120]
[343091278,1732345841486,-500.0,0.00052602,120]
[343091279,1732345841495,-523.94088389,0.00052602,120]
[343091280,1732345841504,-500.0,0.00052602,120]
[343091281,1732345841513,-500.0,0.00052602,120]
[343091282,1732345841526,-500.0,0.00052602,120]
[343091283,1732345841535,-158.00984912,0.00052602,120]
[343091284,1732345841544,-438.0494244,0.00052666,15]
[343091285,1732345841554,-2481.70838832,0.000529,2]
[343091286,1732345841564,-2820.76779517,0.00052915,15]
[343091287,1732345841573,-5056.3186115,0.00052946,2]
[343091288,1732345841583,-165.88,0.00052969,2]
[343091289,1732345841593,-244.07179798,0.00053,7]
[343091290,1732345841601,-500.0,0.00053077,120]
[343091291,1732345841611,-500.0,0.00053077,120]
[343091292,1732345841620,-500.0,0.00053077,120]
[343091293,1732345841629,-957.15,0.00053077,120]
[343091294,1732345841640,-563.05,0.00053077,120]
[343091295,1732345841650,-500.0,0.00053077,120]
[343091296,1732345841659,-536.24,0.00053077,120]
[343091297,1732345841668,-500.0,0.00053077,120]
[343091298,1732345841677,-1000.0,0.00053077,30]
[343091299,1732345841686,-612.5,0.00053077,120]
[343091300,1732345841695,-584.72,0.00053077,120]
[343091301,1732345841705,-553.62,0.00053077,120]
[343091302,1732345841715,-500.0,0.00053077,120]
[343091303,1732345841724,-920.73,0.00053077,120]
[343091304,1732345841733,-500.0,0.00053077,120]
[343091305,1732345841742,-500.0,0.00053077,120]
[343091306,1732345841751,-476.94897561,0.00053077,120]
[343091307,1732345841760,-211.16,0.00053077,120]
[343091308,1732345841769,-500.0,0.00053077,120]
[343091309,1732345841779,-500.0,0.00053077,120]
[343091310,1732345841788,-500.0,0.00053077,120]
[343091311,1732345841797,-500.0,0.00053077,120]
[343091312,1732345841806,-500.0,0.00053077,120]
[343091313,1732345841816,-500.0,0.00053077,21]
[343091314,1732345841825,-500.0,0.00053077,120]
[343091315,1732345841834,-500.0,0.00053077,120]
[343091316,1732345841843,-500.0,0.00053077,120]
[343091317,1732345841853,-500.0,0.00053077,120]
[343091318,1732345841862,-500.0,0.00053077,120]
[343091319,1732345841872,-622.24564786,0.00053077,120]
[343091320,1732345841883,-500.0,0.00053077,120]
[343091321,1732345841892,-754.97,0.00053077,120]
[343091322,1732345841901,-500.0,0.00053077,120]
[343091323,1732345841911,-500.0,0.00053077,120]
[343091324,1732345841920,-514.05,0.00053078,120]
[343091325,1732345841930,-613.73087119,0.00053078,120]
[343091326,1732345841940,-500.0,0.00053078,120]
[343091327,1732345841949,-462.52441773,0.00053078,120]
[343091328,1732345841959,-593.42,0.00053078,120]
[343091329,1732345841968,-1280.96,0.00053078,120]
[343091330,1732345841978,-1262.27,0.00053078,120]
[343091331,1732345841987,-1733.93,0.00053078,120]
[343091332,1732345841997,-636.35,0.00053078,120]
[343091333,1732345842007,-2207.8,0.00053078,120]
[343091334,1732345842016,-1877.82,0.00053078,120]
[343091335,1732345842026,-1563.68,0.00053078,120]
[343091336,1732345842036,-1744.6,0.00053078,120]
[343091337,1732345842046,-1253.8,0.00053078,120]
[343091338,1732345842056,-584.8,0.00053078,120]
[343091339,1732345842065,-500.0,0.00053078,120]
[343091340,1732345842074,-588.42,0.00053078,120]
[343091341,1732345842084,-500.0,0.00053078,120]
[343091342,1732345842093,-497.35168352,0.00053081,120]
[343091343,1732345842103,-279.51475,0.00053083,120]
[343091344,1732345842112,-150.0,0.00053086,120]
[343091345,1732345842122,-418.31989968,0.00053142,120]
[343091346,1732345842132,-438.0494244,0.00053195,15]
[343091347,1732345842141,-418.31989971,0.00053305,120]
[343091348,1732345842151,-165.49668888,0.00053388,28]
[343091349,1732345842161,-165.78,0.00053491,2]
[343091350,1732345842170,-1649.03697,0.0005366,66]
[343091351,1732345842179,-2820.76779517,0.00053713,15]
[343091352,1732345842188,-438.0494244,0.00053725,15]
[343091353,1732345842197,-153.44,0.00054,120]
[343091354,1732345842206,-153.44,0.00054,120]
[343091355,1732345842215,-153.44,0.00054,120]
[343091356,1732345842224,-153.44,0.00054,120]
[343091357,1732345842233,-812.1,0.00054118,2]
[343091358,1732345842242,-438.0494244,0.00054255,15]
[343091359,1732345842338,-500.0,0.00054295,10]
[343091360,1732345842348,-161.300976,0.00054375,2]
[343091361,1732345842357,-400.0,0.000544,19]
[343091362,1732345842367,-150.0,0.00054456,120]
[343091363,1732345842380,-800.0,0.000545,19]
[343091364,1732345842396,-2820.76779517,0.0005451,15]
[343091365,1732345842405,-165.49668888,0.00054559,28]
[343091366,1732345842415,-1200.0,0.000546,19]
[343091367,1732345842424,-1500.0,0.00054687,14]
[343091368,1732345842433,-1500.0,0.00054694,14]
[343091369,1732345842443,-1600.0,0.000547,19]
[343091370,1732345842452,-1500.0,0.000547,14]
[343091371,1732345842461,-1500.0,0.00054714,14]
[343091372,1732345842471,-1500.0,0.00054717,14]
[343091373,1732345842484,-150.0,0.0005472,7]
[343091374,1732345842494,-150.0,0.0005472,7]
[343091375,1732345842503,-150.0,0.00054722,7]
[343091376,1732345842514,-150.0,0.00054725,7]
[343091377,1732345842528,-150.0,0.00054727,7]
[343091378,1732345842537,-150.0,0.00054728,7]
[343091379,1732345842546,-150.0,0.0005473,14]
[343091380,1732345842556,-150.0,0.00054732,7]
[343091381,1732345842567,-150.0,0.00054735,7]
[343091382,1732345842576,-150.0,0.00054735,7]
[343091383,1732345842586,-150.0,0.00054736,7]
[343091384,1732345842595,-1500.0,0.00054736,14]
[343091385,1732345842604,-1500.0,0.00054736,14]
[343091386,1732345842614,-150.0,0.00054737,7]
[343091387,1732345842623,-150.0,0.0005474,7]
[343091388,1732345842636,-150.0,0.00054743,7]
[343091389,1732345842646,-1500.0,0.00054743,14]
[343091390,1732345842656,-150.0,0.00054745,7]
[343091391,1732345842666,-150.0,0.00054749,7]
[343091392,1732345842675,-150.0,0.0005475,7]
[343091393,1732345842684,-150.0,0.00054756,7]
[343091394,1732345842695,-150.0,0.0005476,7]
[343091395,1732345842705,-1500.0,0.0005476,14]
[343091396,1732345842714,-1500.0,0.0005476,14]
[343091397,1732345842724,-150.0,0.00054762,7]
[343091398,1732345842733,-150.0,0.00054764,7]
[343091399,1732345842743,-150.0,0.00054768,7]
[343091400,1732345842752,-150.0,0.00054769,7]
[343091401,1732345842761,-150.0,0.0005477,7]
[343091402,1732345842771,-1500.0,0.00054777,14]
[343091403,1732345842781,-150.0,0.00054777,7]
[343091404,1732345842790,-150.0,0.00054779,7]
[343091405,1732345842800,-150.59,0.00054784,2]
[343091406,1732345842809,-150.0,0.00054784,7]
[343091407,1732345842818,-438.0494244,0.00054784,15]
[343091408,1732345842828,-150.0,0.00054785,7]
[343091409,1732345842837,-150.0,0.00054788,7]
[343091410,1732345842847,-150.0,0.00054788,7]
[343091411,1732345842857,-150.0,0.0005479,7]
[343091412,1732345842867,-150.0,0.0005479,14]
[343091413,1732345842877,-150.0,0.00054791,7]
[343091414,1732345842889,-150.0,0.00054792,7]
[343091415,1732345842899,-150.0,0.00054792,7]
[343091416,1732345842908,-150.0,0.00054794,7]
[343091417,1732345842917,-500.0,0.00054794,120]
[343091418,1732345842927,-500.0,0.00054794,120]
[343091419,1732345842937,-1014.23,0.00054794,120]
[343091420,1732345842946,-500.0,0.00054794,120]
[343091421,1732345842956,-2000.0,0.00054794,120]
[343091422,1732345842966,-2000.0,0.00054794,120]
[343091423,1732345842976,-500.0,0.00054794,120]
[343091424,1732345842986,-585.18354678,0.00054794,120]
[343091425,1732345842996,-3000.0,0.00054794,120]
[343091426,1732345843005,-940.06473527,0.00054794,120]
[343091427,1732345843015,-150.84783773,0.00054795,30]
[343091428,1732345843025,-500.0,0.00054795,120]
[343091429,1732345843034,-500.0,0.00054795,120]
[343091430,1732345843044,-150.0,0.00054795,14]
[343091431,1732345843054,-150.0,0.00054795,14]
[343091432,1732345843064,-150.0,0.00054796,14]
[343091433,1732345843074,-150.0,0.00054799,14]
[343091434,1732345843083,-2000.0,0.000548,20]
[343091435,1732345843093,-150.0,0.00054801,14]
[343091436,1732345843103,-1500.0,0.00054802,30]
[343091437,1732345843112,-150.0,0.00054807,14]
[343091438,1732345843122,-167.76,0.00054807,2]
[343091439,1732345843131,-150.0,0.00054808,14]
[343091441,1732345843142,-150.0,0.00054809,14]
[343091443,1732345843151,-150.0,0.00054822,14]
[343091444,1732345843160,-150.0,0.00054825,14]
[343091445,1732345843169,-150.0,0.00054826,14]
[343091446,1732345843179,-150.0,0.00054827,14]
[343091447,1732345843189,-150.0,0.00054828,14]
[343091449,1732345843198,-150.0,0.00054832,14]
[343091450,1732345843207,-150.0,0.00054833,14]
[343091451,1732345843217,-150.0,0.00054837,14]
[343091452,1732345843227,-150.0,0.00054837,14]
[343091453,1732345843236,-150.0,0.00054839,14]
[343091454,1732345843246,-150.0,0.00054843,14]
[343091455,1732345843255,-1000.0,0.00054843,15]
[343091456,1732345843264,-150.0,0.00054847,14]
[343091457,1732345843273,-150.0,0.00054848,14]
[343091458,1732345843282,-150.0,0.00054848,14]
[343091459,1732345843292,-150.0,0.0005485,14]
[343091460,1732345843302,-150.0,0.00054852,14]
[343091461,1732345843312,-150.0,0.00054853,14]
[343091462,1732345843322,-150.0,0.00054857,14]
[343091463,1732345843331,-1500.0,0.00054857,30]
[343091464,1732345843341,-1500.0,0.00054857,30]
[343091465,1732345843350,-282.02240207,0.00054859,30]
[343091466,1732345843359,-150.0,0.00054862,14]
[343091467,1732345843368,-542.08481283,0.00054865,120]
[343091468,1732345843378,-633.45637566,0.00054865,120]
[343091469,1732345843389,-500.0,0.00054865,120]
[343091470,1732345843399,-500.0,0.00054865,120]
[343091471,1732345843409,-500.0,0.00054866,120]
[343091472,1732345843419,-500.0,0.00054866,120]
[343091473,1732345843429,-957.15,0.00054866,120]
[343091474,1732345843439,-563.05,0.00054866,120]
[343091475,1732345843448,-500.0,0.00054866,120]
[343091476,1732345843457,-536.24,0.00054866,120]
[343091477,1732345843466,-612.5,0.00054866,120]
[343091478,1732345843479,-584.72,0.00054866,120]
[343091479,1732345843489,-553.62,0.00054866,120]
[343091480,1732345843498,-500.0,0.00054866,120]
[343091481,1732345843507,-920.73,0.00054866,120]
[343091482,1732345843518,-500.0,0.00054866,120]
[343091483,1732345843527,-1500.0,0.00054869,30]
[343091484,1732345843537,-150.0,0.00054873,14]
[343091485,1732345843548,-1500.0,0.00054875,30]
[343091486,1732345843558,-1500.0,0.0005488,30]
[343091487,1732345843567,-150.0,0.0005488,14]
[343091488,1732345843576,-150.0,0.00054882,14]
[343091489,1732345843585,-196.34528074,0.00054886,30]
[343091490,1732345843594,-150.0,0.00054886,14]
[343091491,1732345843604,-150.0,0.00054887,14]
[343091492,1732345843614,-150.0,0.00054888,14]
[343091493,1732345843624,-150.0,0.00054888,14]
[343091494,1732345843634,-150.0,0.00054889,14]
[343091495,1732345843644,-150.0,0.00054892,14]
[343091496,1732345843654,-150.0,0.00054893,14]
[343091497,1732345843663,-150.0,0.00054895,14]
[343091498,1732345843672,-150.0,0.00054897,30]
[343091499,1732345843682,-1500.0,0.000549,120]
[343091500,1732345843691,-553.0,0.000549,3]
[343091501,1732345843701,-1000.0,0.000549,120]